fUST/lending_fUST_20250925
["ID","MTS","AMOUNT","RATE_DAILY","PERIOD"]
[387702190,1758815444136,-480.0,0.00021235,2]
[387702192,1758815444146,-480.0,0.00021268,2]
[387702194,1758815444156,-480.0,0.00021268,2]
[387702196,1758815444166,-480.0,0.00021268,2]
[387702198,1758815444175,-480.0,0.00021268,2]
[387702200,1758815444184,-480.0,0.00021268,2]
[387702202,1758815444194,-500.0,0.000214,2]
[387702204,1758815444204,-500.70688471,0.000214,2]
[387702206,1758815444214,-500.0,0.000214,2]
[387702208,1758815444224,-500.0,0.000214,2]
[387702210,1758815444235,-614.68371505,0.000214,2]
[387702212,1758815444244,-168.63354543,0.00021433,2]
[387702214,1758815444254,-160.0,0.00021443,2]
[387702216,1758815444263,-480.0,0.00021508,2]
[387702218,1758815444272,-480.0,0.00021508,2]
[387702220,1758815444283,-506.61,0.00021508,2]
[387702228,1758815444292,-320.04910667,0.00021508,2]
[387702232,1758815444384,-480.0,0.00021508,2]
[387702234,1758815444394,-480.0,0.00021509,2]
[387702236,1758815444403,-959.76,0.00021509,2]
[387702238,1758815444412,-480.0,0.00021509,2]
[387702240,1758815444421,-480.0,0.00021509,2]
[387702242,1758815444431,-480.0,0.00021542,2]
[387702244,1758815444444,-480.0,0.00021542,2]
[387702245,1758815444454,-480.0,0.00021542,2]
[387702248,1758815444465,-599.03976741,0.00021542,2]
[387702250,1758815444474,-480.0,0.00021542,2]
[387702252,1758815444485,-150.0,0.00021634,2]
[387702254,1758815444494,-480.0,0.00021782,2]
[387702256,1758815444504,-480.0,0.00021782,2]
[387702258,1758815444513,-506.61,0.00021782,2]
[387702260,1758815444522,-480.0,0.00021782,2]
[387702262,1758815444532,-480.0,0.00021783,2]
[387702264,1758815444541,-959.76,0.00021783,2]
[387702266,1758815444550,-480.0,0.00021783,2]
[387702268,1758815444560,-480.0,0.00021783,2]
[387702270,1758815444572,-480.0,0.00021816,2]
[387702272,1758815444580,-480.0,0.00021816,2]
[387702274,1758815444591,-480.0,0.00021816,2]
[387702276,1758815444599,-480.0,0.00021816,2]
[387702278,1758815444608,-1004.43716036,0.00021948,2]
[387702280,1758815444618,-260.0,0.00021991,2]
[387702282,1758815444627,-598.87,0.00022,2]
[387702284,1758815444636,-1052.61547382,0.00022044,2]
[387702286,1758815444647,-500.0,0.0002205,2]
[387702288,1758815444656,-500.0,0.0002205,2]
[387702290,1758815444665,-500.0,0.0002205,2]
[387702291,1758815444675,-500.0,0.0002205,2]
[387702294,1758815444686,-480.0,0.00022056,2]
[387702296,1758815444696,-480.0,0.00022056,2]
[387702298,1758815444706,-506.61,0.00022056,2]
[387702300,1758815444717,-480.0,0.00022056,2]
[387702302,1758815444726,-480.0,0.00022057,2]
[387702304,1758815444736,-959.76,0.00022057,2]
[387702306,1758815444746,-480.0,0.00022057,2]
[387702308,1758815444756,-480.0,0.00022057,2]
[387702310,1758815444766,-500.0,0.00022062,2]
[387702312,1758815444776,-500.0,0.00022062,2]
[387702314,1758815444786,-500.0,0.00022062,2]
[387702316,1758815444795,-500.0,0.00022073,2]
[387702318,1758815444805,-327.74066599,0.00022073,2]
[387702320,1758815444815,-159.01035839,0.00022073,2]
[387702322,1758815444825,-500.0,0.00022073,2]
[387702324,1758815444834,-163.59297665,0.00022073,2]
[387702326,1758815444844,-500.0,0.00022073,2]
[387702328,1758815444853,-500.0,0.00022073,2]
[387702330,1758815444863,-501.00712413,0.00022073,2]
[387702331,1758815444873,-500.0,0.00022073,2]
[387702333,1758815444883,-500.0,0.00022073,2]
[387702335,1758815444893,-503.57398142,0.00022073,2]
[387702337,1758815444903,-500.0,0.00022073,2]
[387702340,1758815444912,-501.58013168,0.00022073,2]
[387702342,1758815444922,-500.03115209,0.00022073,2]
[387702343,1758815444931,-629.49467178,0.00022073,2]
[387702345,1758815444941,-500.0,0.00022073,2]
[387702347,1758815444951,-500.0,0.00022073,2]
[387702350,1758815444962,-500.0,0.00022073,2]
[387702352,1758815444971,-500.0,0.00022073,2]
[387702354,1758815444981,-480.0,0.0002209,2]
[387702355,1758815444991,-480.0,0.0002209,2]
[387702357,1758815445000,-480.0,0.0002209,2]
[387702359,1758815445010,-480.0,0.0002209,2]
[387702361,1758815445019,-480.0,0.0002233,2]
[387702363,1758815445029,-480.0,0.0002233,2]
[387702365,1758815445039,-506.61,0.0002233,2]
[387702368,1758815445048,-480.0,0.0002233,2]
[387702370,1758815445058,-528.78836381,0.00022331,2]
[387702372,1758815445067,-959.76,0.00022331,2]
[387702373,1758815445076,-480.0,0.00022331,2]
[387702375,1758815445086,-480.0,0.00022331,2]
[387702378,1758815445096,-480.0,0.00022364,2]
[387702380,1758815445106,-480.0,0.00022364,2]
[387702381,1758815445116,-480.0,0.00022364,2]
[387702383,1758815445126,-480.0,0.00022364,2]
[387702385,1758815445135,-500.0,0.00022414,2]
[387702387,1758815445146,-500.0,0.00022464,2]
[387702389,1758815445156,-160.0,0.00022509,2]
[387702392,1758815445166,-160.0,0.00022509,2]
[387702393,1758815445175,-160.0,0.00022509,2]
[387702394,1758815445185,-233.66602051,0.00022509,2]
[387702395,1758815445195,-160.0,0.00022509,2]
[387702396,1758815445204,-417.15472785,0.00022509,2]
[387702397,1758815445214,-160.0,0.00022509,2]
[387702398,1758815445224,-160.0,0.00022511,2]
[387702399,1758815445234,-360.0,0.00022539,2]
[387702400,1758815445244,-150.0,0.00022575,2]
[387702401,1758815445254,-501.51328029,0.00022598,2]
[387702402,1758815445264,-501.64480659,0.00022598,2]
[387702404,1758815445274,-501.06641698,0.00022598,2]
[387702406,1758815445284,-500.0,0.000226,2]
[387702408,1758815445293,-480.0,0.00022604,2]
[387702410,1758815445306,-366.45,0.00022604,2]
[387702412,1758815445315,-506.61,0.00022604,2]
[387702414,1758815445328,-480.0,0.00022604,2]
[387702416,1758815445342,-959.76,0.00022605,2]
[387702417,1758815445356,-480.0,0.00022605,2]
[387702420,1758815445370,-483.37417551,0.00022605,2]
[387702421,1758815445386,-501.05629741,0.00022609,2]
[387702422,1758815445398,-500.66169981,0.00022609,2]
[387702423,1758815445413,-503.84850847,0.00022621,2]
[387702424,1758815445428,-1000.0,0.00022621,2]
[387702425,1758815445441,-742.22199612,0.00022621,2]
[387702426,1758815445455,-1000.0,0.00022621,2]
[387702427,1758815445468,-480.0,0.00022638,2]
[387702428,1758815445481,-480.0,0.00022638,2]
[387702429,1758815445493,-480.0,0.00022638,2]
[387702430,1758815445507,-480.0,0.00022638,2]
[387702431,1758815445520,-500.0,0.00022737,2]
[387702432,1758815445534,-480.0,0.00022878,2]
[387702433,1758815445547,-506.61,0.00022878,2]
[387702434,1758815445560,-480.0,0.00022878,2]
[387702435,1758815445572,-959.76,0.00022879,2]
[387702436,1758815445585,-480.0,0.00022879,2]
[387702437,1758815445599,-480.0,0.00022912,2]
[387702438,1758815445613,-480.0,0.00022912,2]
[387702439,1758815445626,-480.0,0.00022912,2]
[387702440,1758815445639,-480.0,0.00022912,2]
[387702441,1758815445650,-160.0,0.00023,3]
[387702442,1758815445662,-160.0,0.00023,2]
[387702443,1758815445674,-440.0,0.00023087,2]
[387702444,1758815445686,-1052.61547382,0.00023116,2]
[387702445,1758815445699,-480.0,0.00023152,2]
[387702446,1758815445712,-506.61,0.00023152,2]
[387702447,1758815445724,-480.0,0.00023152,2]
[387702448,1758815445738,-959.76,0.00023153,2]
[387702449,1758815445751,-480.0,0.00023153,2]
[387702450,1758815445764,-2650.20957014,0.00023161,2]
[387702451,1758815445778,-1500.0,0.00023168,2]
[387702452,1758815445792,-500.0,0.00023168,2]
[387702453,1758815445804,-480.0,0.00023186,2]
[387702454,1758815445815,-480.0,0.00023186,2]
[387702455,1758815445827,-163.61,0.00023186,2]
[387702456,1758815445838,-480.0,0.00023186,2]
[387702457,1758815445850,-500.0,0.00023285,2]
[387702458,1758815445864,-502.09635083,0.00023287,2]
[387702459,1758815445880,-480.0,0.00023426,2]
[387702460,1758815445894,-506.61,0.00023426,2]
[387702461,1758815445908,-466.86,0.00023426,2]
[387702462,1758815445920,-959.76,0.00023427,2]
[387702463,1758815445933,-480.0,0.00023427,2]
[387702464,1758815445946,-480.0,0.0002346,2]
[387702465,1758815445960,-480.0,0.0002346,2]
[387702466,1758815445972,-480.0,0.0002346,2]
[387702467,1758815445983,-150.0,0.00023515,2]
[387702468,1758815445994,-541.24,0.000237,2]
[387702469,1758815446005,-506.61,0.000237,2]
[387702470,1758815446016,-959.76,0.00023701,2]
[387702471,1758815446028,-480.0,0.00023701,2]
[387702473,1758815446040,-500.0,0.00023709,2]
[387702475,1758815446051,-503.24530109,0.00023716,2]
[387702477,1758815446062,-273.07,0.00023734,2]
[387702479,1758815446073,-480.0,0.00023734,2]
[387702481,1758815446084,-480.0,0.00023734,2]
[387702483,1758815446095,-506.61,0.00023974,2]
[387702486,1758815446106,-959.76,0.00023975,2]
[387702488,1758815446116,-502.56,0.00023975,2]
[387702490,1758815446128,-480.0,0.00024008,2]
[387702492,1758815446139,-480.0,0.00024008,2]
[387702494,1758815446150,-200.0,0.00024109,2]
[387702496,1758815446162,-200.0,0.00024109,2]
[387702498,1758815446173,-200.0,0.00024109,2]
[387702500,1758815446185,-200.0,0.00024109,2]
[387702502,1758815446196,-293.71008046,0.00024109,2]
[387702504,1758815446207,-1052.61547382,0.00024187,2]
[387702506,1758815446219,-150.0,0.00024196,30]
[387702507,1758815446231,-500.0,0.00024219,2]
[387702509,1758815446243,-819.569,0.00024236,6]
[387702512,1758815446254,-506.61,0.00024248,2]
[387702514,1758815446268,-959.76,0.00024249,2]
[387702516,1758815446280,-285.67498993,0.00024282,2]
[387702518,1758815446291,-480.0,0.00024282,2]
[387702520,1758815446302,-369.45446318,0.0002443,2]
[387702522,1758815446313,-150.59,0.00024467,2]
[387702526,1758815446324,-506.61,0.00024522,2]
[387702530,1758815446335,-959.76,0.00024523,2]
[387702533,1758815446346,-480.0,0.00024556,2]
[387702536,1758815446358,-500.0,0.00024582,2]
[387702539,1758815446371,-506.61,0.00024796,2]
[387702542,1758815446387,-959.76,0.00024797,2]
[387702545,1758815446399,-480.0,0.0002483,2]
[387702549,1758815446411,-501.49750944,0.00024873,2]
[387702552,1758815446422,-500.0,0.00024873,2]
[387702555,1758815446435,-500.0,0.00024873,2]
[387702559,1758815446447,-500.0,0.00024873,2]
[387702561,1758815446459,-500.0,0.00024873,2]
[387702573,1758815446571,-317543.760868,0.000249,2]
[387702575,1758815446587,-506.61,0.0002507,2]
[387702576,1758815446598,-959.76,0.00025071,2]
[387702577,1758815446608,-218.87,0.00025104,2]
[387702578,1758815446620,-1052.61547382,0.00025259,3]
[387702579,1758815446630,-598.87,0.000253,2]
[387702580,1758815446639,-500.0,0.00025314,7]
[387702581,1758815446649,-506.61,0.00025344,2]
[387702582,1758815446659,-959.76,0.00025345,2]
[387702583,1758815446668,-500.0,0.00025346,7]
[387702584,1758815446679,-500.0,0.00025348,7]
[387702585,1758815446689,-175.69,0.00025408,2]
[387702586,1758815446699,-602.65170465,0.00025421,2]
[387702587,1758815446709,-549.24933527,0.00025421,2]
[387702588,1758815446718,-506.64999999,0.00025618,2]
[387702589,1758815446729,-959.84,0.00025619,2]
[387702590,1758815446738,-966.45,0.00025757,7]
[387702591,1758815446748,-151.0,0.00025878,5]
[387702592,1758815446758,-1038.05082755,0.00026022,2]
[387702593,1758815446767,-1000.0,0.00026022,2]
[387702594,1758815446778,-1006.43456884,0.00026022,2]
[387702595,1758815446788,-304.9964042,0.00026022,2]
[387702596,1758815446798,-151.0,0.00026022,2]
[387702597,1758815446808,-151.0,0.00026022,2]
[387702598,1758815446819,-151.0,0.00026022,2]
[387702599,1758815446828,-151.0,0.00026022,2]
[387702600,1758815446838,-151.0,0.00026022,2]
[387702601,1758815446848,-350.0,0.00026022,2]
[387702602,1758815446858,-500.0,0.00026022,2]
[387702603,1758815446868,-500.0,0.00026022,2]
[387702604,1758815446878,-500.0,0.00026022,2]
[387702605,1758815446888,-500.0,0.00026022,2]
[387702606,1758815446898,-500.0,0.00026022,2]
[387702607,1758815446908,-500.0,0.00026022,2]
[387702608,1758815446918,-500.0,0.00026022,2]
[387702609,1758815446927,-500.0,0.00026022,2]
[387702610,1758815446938,-285.51436141,0.00026022,2]
[387702611,1758815446948,-1052.61547382,0.00026331,5]
[387702612,1758815446958,-200.79,0.00026349,2]
[387702613,1758815446968,-500.0,0.00026415,7]
[387702614,1758815446978,-500.0,0.00026508,7]
[387702615,1758815446988,-155.1,0.0002679,7]
[387702616,1758815446998,-155.1,0.0002689,7]
[387702617,1758815447008,-155.1,0.0002699,7]
[387702618,1758815447019,-160.0,0.00027,3]
[387702619,1758815447029,-155.1,0.0002709,7]
[387702620,1758815447040,-269.0,0.00027151,23]
[387702622,1758815447049,-155.1,0.0002719,7]
[387702623,1758815447059,-500.0,0.00027229,7]
[387702624,1758815447070,-155.1,0.0002729,7]
[387702625,1758815447081,-225.89,0.0002729,2]
[387702626,1758815447091,-499.3,0.00027333,7]
[387702627,1758815447101,-500.0,0.00027388,7]
[387702628,1758815447111,-155.1,0.0002739,7]
[387702629,1758815447122,-1000.0,0.00027397,2]
[387702630,1758815447132,-1052.61547382,0.00027403,7]
[387702631,1758815447142,-500.0,0.00027427,7]
[387702632,1758815447152,-500.0,0.00027474,7]
[387702633,1758815447162,-500.0,0.00027484,7]
[387702634,1758815447172,-155.1,0.0002749,15]
[387702635,1758815447182,-637.51638402,0.00027534,2]
[387702636,1758815447192,-155.1,0.0002759,15]
[387702637,1758815447203,-155.1,0.0002769,15]
[387702638,1758815447213,-151.0,0.00027707,6]
[387702639,1758815447223,-500.0,0.00027857,7]
[387702640,1758815447233,-179.64071856,0.00027965,2]
[387702641,1758815447243,-500.0,0.00028094,7]
[387702642,1758815447253,-160.777775,0.00028215,20]
[387702643,1758815447263,-199.0,0.00028219,14]
[387702644,1758815447272,-250.99,0.00028231,2]
[387702645,1758815447282,-598.87,0.000283,2]
[387702646,1758815447294,-1052.61547382,0.00028475,9]
[387702647,1758815447304,-199.0,0.00028904,15]
[387702648,1758815447314,-1000.0,0.000294,2]
[387702649,1758815447324,-151.0,0.00029537,7]
[387702650,1758815447333,-1052.61547382,0.00029547,12]
[387702651,1758815447343,-2000.0,0.00029557,30]
[387702652,1758815447353,-1858.099999,0.00029557,30]
[387702653,1758815447363,-155.0,0.00029557,2]
[387702654,1758815447374,-150.000001,0.00029557,10]
[387702655,1758815447394,-369.45446318,0.00029587,2]
[387702656,1758815447404,-199.0,0.00029589,16]
[387702657,1758815447414,-500.0,0.00029674,7]
[387702658,1758815447424,-3057.97994605,0.00029687,2]
[387702659,1758815447434,-160.0,0.000297,7]
[387702660,1758815447444,-151.48039822,0.00029832,2]
[387702661,1758815447453,-151.0,0.00029832,2]
[387702662,1758815447463,-500.0,0.00029891,7]
[387702663,1758815447473,-1131.18,0.0003,2]
[387702664,1758815447483,-151.0,0.00030106,2]
[387702665,1758815447492,-1131.18,0.0003014,2]
[387702666,1758815447501,-199.0,0.00030273,17]
[387702667,1758815447511,-1131.18,0.0003028,2]
[387702668,1758815447520,-151.0,0.0003038,2]
[387702669,1758815447530,-500.0,0.00030414,7]
[387702670,1758815447540,-500.0,0.00030489,7]
[387702671,1758815447550,-583.04111119,0.00030562,7]
[387702672,1758815447560,-1052.61547382,0.00030619,14]
[387702673,1758815447570,-151.0,0.00030654,2]
[387702674,1758815447580,-500.0,0.00030676,7]
[387702675,1758815447591,-500.0,0.0003077,7]
[387702676,1758815447601,-151.0,0.00030928,2]
[387702677,1758815447611,-199.0,0.00030958,18]
[387702678,1758815447626,-245.0,0.00031202,2]
[387702679,1758815447636,-151.0,0.00031367,30]
[387702680,1758815447646,-199.0,0.00031643,19]
[387702681,1758815447656,-1052.61547382,0.0003169,16]
[387702682,1758815447666,-183.22441895,0.00032,120]
[387702683,1758815447677,-162.75628059,0.00032,120]
[387702684,1758815447687,-1125.96698239,0.00032,120]
[387702685,1758815447697,-716.82456778,0.00032,120]
[387702686,1758815447708,-183.04,0.00032,120]
[387702687,1758815447718,-690.72402878,0.00032,120]
[387702688,1758815447728,-6253.47107202,0.00032,120]
[387702689,1758815447739,-216.09257822,0.00032,120]
[387702690,1758815447749,-160.0,0.00032,7]
[387702691,1758815447759,-160.0,0.00032,7]
[387702692,1758815447769,-183.22441895,0.000323,120]
[387702693,1758815447779,-162.75628059,0.000323,120]
[387702694,1758815447788,-1125.96698239,0.000323,120]
[387702695,1758815447797,-716.82456778,0.000323,120]
[387702696,1758815447807,-183.04,0.000323,120]
[387702697,1758815447817,-690.72402878,0.000323,120]
[387702698,1758815447827,-6253.47107202,0.000323,120]
[387702699,1758815447837,-199.0,0.00032328,20]
[387702700,1758815447847,-1125.96698239,0.000326,120]
[387702701,1758815447857,-716.82456778,0.000326,120]
[387702702,1758815447868,-183.04,0.000326,120]
[387702703,1758815447879,-690.72402878,0.000326,120]
[387702704,1758815447889,-6253.47107202,0.000326,120]
[387702705,1758815447900,-1052.61547382,0.00032762,19]
[387702706,1758815447910,-480.0,0.00032876,120]
[387702708,1758815447920,-500.0,0.00032876,120]
[387702709,1758815447929,-1500.0,0.00032877,2]
[387702711,1758815447939,-1496.84,0.00032877,10]
[387702713,1758815447949,-1247.36,0.00032877,10]
[387702715,1758815447959,-185.97,0.0003288,30]
[387702717,1758815447970,-154.30926728,0.0003288,30]
[387702719,1758815447980,-154.3,0.0003288,30]
[387702721,1758815447991,-1125.96698239,0.00033,120]
[387702723,1758815448001,-716.82456778,0.00033,120]
[387702724,1758815448011,-183.04,0.00033,120]
[387702725,1758815448021,-690.72402878,0.00033,120]
[387702726,1758815448031,-6253.47107202,0.00033,120]
[387702727,1758815448042,-160.0,0.00033,120]
[387702728,1758815448052,-160.0,0.00033,120]
[387702729,1758815448063,-160.0,0.00033,120]
[387702730,1758815448073,-160.0,0.00033,120]
[387702731,1758815448083,-160.0,0.00033,120]
[387702732,1758815448093,-199.0,0.00033013,21]
[387702733,1758815448103,-598.87,0.000331,14]
[387702734,1758815448113,-151.0,0.00033197,30]
[387702735,1758815448124,-1125.96698239,0.000333,120]
[387702736,1758815448134,-716.82456778,0.000333,120]
[387702737,1758815448146,-183.04,0.000333,120]
[387702739,1758815448156,-690.72402878,0.000333,120]
[387702741,1758815448166,-6253.47107202,0.000333,120]
[387702743,1758815448176,-6253.47107202,0.000336,120]
[387702745,1758815448186,-199.0,0.00033698,22]
[387702746,1758815448196,-500.0,0.00033698,120]
[387702747,1758815448206,-500.0,0.00033749,7]
[387702748,1758815448217,-1052.61547382,0.00033834,21]
[387702750,1758815448227,-180.0274785,0.00033915,30]
[387702751,1758815448237,-981.87,0.00033947,2]
[387702753,1758815448248,-410.0,0.00033947,2]
[387702754,1758815448258,-2160.0,0.00033947,2]
[387702755,1758815448269,-635.0,0.00033947,2]
[387702756,1758815448279,-1046.0,0.00033947,2]
[387702757,1758815448291,-500.0,0.00033985,7]
[387702758,1758815448301,-6253.47107202,0.00034,120]
[387702759,1758815448312,-6253.47107202,0.000343,120]
[387702760,1758815448322,-199.0,0.00034383,23]
[387702761,1758815448333,-500.0,0.0003452,120]
[387702762,1758815448343,-6253.47107202,0.000347,120]
[387702763,1758815448354,-369.45446318,0.00034743,2]
[387702764,1758815448365,-1052.61547382,0.00034906,23]
[387702765,1758815448378,-6253.47107202,0.00035,120]
[387702766,1758815448389,-151.0,0.00035027,30]
[387702767,1758815448400,-199.0,0.00035068,24]
[387702768,1758815448410,-160.0,0.00035089,3]
[387702769,1758815448422,-500.0,0.00035342,120]
[387702770,1758815448432,-199.0,0.00035753,25]
[387702771,1758815448442,-216.97504219,0.0003591,30]
[387702772,1758815448453,-180.0274785,0.0003591,30]
[387702773,1758815448463,-1052.61547382,0.00035978,26]
[387702774,1758815448474,-500.0,0.00036164,120]
[387702775,1758815448484,-199.0,0.00036438,26]
[387702776,1758815448494,-500.0,0.00036633,7]
[387702777,1758815448504,-151.0,0.00036857,30]
[387702778,1758815448515,-978.0,0.00036947,2]
[387702779,1758815448525,-410.0,0.00036947,2]
[387702780,1758815448535,-2160.0,0.00036947,2]
[387702781,1758815448545,-635.0,0.00036947,2]
[387702782,1758815448555,-480.0,0.00036986,15]
[387702783,1758815448566,-500.0,0.00036986,120]
[387702784,1758815448577,-1052.61547382,0.0003705,28]
[387702785,1758815448588,-199.0,0.00037123,27]
[387702786,1758815448598,-199.0,0.00037808,28]
[387702787,1758815448609,-293.59,0.00037808,120]
[387702788,1758815448620,-180.0274785,0.00037905,30]
[387702789,1758815448632,-308.86733896,0.00038,120]
[387702790,1758815448642,-232.30780184,0.00038111,120]
[387702791,1758815448653,-1052.61547382,0.00038122,30]
[387702792,1758815448663,-1500.0,0.00038356,2]
[387702793,1758815448673,-199.0,0.00038493,29]
[387702794,1758815448683,-151.0,0.00038686,30]
[387702795,1758815448693,-160.0,0.00038741,4]
[387702796,1758815448703,-600.0,0.00039152,7]
[387702797,1758815448713,-199.0,0.00039178,30]
[387702798,1758815448724,-1052.61547382,0.00039194,32]
[387702799,1758815448734,-232.30780184,0.00039238,120]
[387702800,1758815448745,-500.0,0.00039452,120]
[387702801,1758815448755,-500.0,0.00039452,120]
[387702802,1758815448765,-500.0,0.00039452,120]
[387702803,1758815448774,-500.0,0.00039452,120]
[387702804,1758815448784,-191.83981498,0.00039452,120]
[387702805,1758815448794,-2906.58562555,0.00039452,6]
[387702806,1758815448804,-1506.05633969,0.000397,120]
[387702807,1758815448814,-199.0,0.00039863,31]
[387702808,1758815448824,-161012.15568069,0.00039873,17]
[387702809,1758815448977,-1413139.41432576,0.00039873,17]
[387702810,1758815448998,-403.23018504,0.00039873,17]
[387702811,1758815449015,-30338.87864837,0.00039873,17]
[387702812,1758815449029,-16352.97772739,0.00039873,17]
[387702813,1758815449082,-355.62913893,0.00019317,2]
[387702814,1758815449096,-124.37086107,0.00019317,2]
[387702815,1758815449107,-480.0,0.00019317,2]
[387702816,1758815449118,-250.99130607,0.00019591,2]
[387702817,1758815449130,-480.0,0.00019591,2]
[387702818,1758815449142,-63298.6439339,0.00039873,17]
[387702819,1758815449155,-2858.12,0.00039873,17]
[387702820,1758815449169,-93968.69860104,0.00039873,17]
[387702821,1758815449440,-480.0,0.00019316,2]
[387702822,1758815449450,-454.32829393,0.00019316,2]
[387702823,1758815449463,-25.67170607,0.00019316,2]
[387702824,1758815449474,-234.53121813,0.00019316,2]
[387702825,1758815449487,-245.46878187,0.00019316,2]
[387702826,1758815449497,-480.0,0.00019865,2]
[387702827,1758815449507,-480.0,0.00020139,2]
[387702828,1758815449518,-480.0,0.00020413,2]
[387702829,1758815449529,-480.0,0.00020687,2]
[387702830,1758815449541,-480.0,0.00020961,2]
[387702831,1758815449553,-480.0,0.00021235,2]
[387702832,1758815449564,-480.0,0.00021509,2]
[387702833,1758815449574,-480.0,0.00021783,2]
[387702834,1758815449585,-556.02269838,0.00022057,2]
[387702835,1758815449595,-7126.50851975,0.00039873,17]
[387702836,1758815449607,-4596.99999996,0.00039873,17]
[387702837,1758815449619,-2473.1368155,0.00039873,17]
[387702838,1758815449632,-7842.32324135,0.00039873,17]
[387702840,1758815449651,-791943.59299145,0.00039873,17]
[387702871,1758815809891,-334.26762147,0.00019216,2]
[387702872,1758815809964,-191.0,0.00019314,2]
[387702873,1758815810037,-480.0,0.00019315,2]
[387702874,1758815810113,-480.0,0.00019315,2]
[387702875,1758815810186,-480.0,0.00019315,2]
[387702876,1758815810259,-480.0,0.00019315,2]
[387702877,1758815810331,-480.0,0.00019315,2]
[387702878,1758815810399,-480.0,0.00019315,2]
[387702879,1758815810464,-500.0,0.00019315,2]
[387702880,1758815810536,-480.0,0.00019315,2]
[387702881,1758815810607,-480.0,0.00019315,2]
[387702882,1758815811512,-269.47475706,0.00019315,2]
[387702884,1758815818596,-210.52524294,0.00019315,2]
[387702885,1758815818673,-480.0,0.00019315,2]
[387702886,1758815818749,-480.0,0.00019315,2]
[387702887,1758815818825,-480.0,0.00019315,2]
[387702888,1758815818903,-341.22419174,0.00019315,2]
[387702889,1758815818979,-480.0,0.00019315,2]
[387702890,1758815819061,-480.0,0.00019315,2]
[387702891,1758815819143,-480.0,0.00019315,2]
[387702892,1758815819225,-480.0,0.00019315,2]
[387702893,1758815819305,-480.0,0.00019315,2]
[387702894,1758815819382,-480.0,0.00019315,2]
[387702895,1758815820137,-256.51113064,0.00019316,2]
[387702896,1758815829667,-172.77724034,0.00019316,2]
[387702897,1758815829739,-481.8827426,0.00019316,2]
[387702898,1758815829810,-480.0,0.00019316,2]
[387702899,1758815829884,-480.0,0.00019316,2]
[387702900,1758815829956,-405.89787214,0.00019316,2]
[387702901,1758815830032,-480.0,0.00019316,2]
[387702902,1758815830105,-480.0,0.00019316,2]
[387702903,1758815830176,-480.0,0.00019316,2]
[387702904,1758815830248,-480.0,0.00019316,2]
[387702905,1758815830320,-480.0,0.00019316,2]
[387702906,1758815830393,-480.0,0.00019316,2]
[387702907,1758815831086,-198.89428984,0.00019316,2]
[387702908,1758815838053,-287.05788869,0.00019316,2]
[387702909,1758815838128,-487.41329562,0.00019316,2]
[387702910,1758815838201,-480.0,0.00019316,2]
[387702911,1758815838273,-496.26398348,0.00019316,2]
[387702912,1758815838343,-480.0,0.00019316,2]
[387702913,1758815838414,-480.0,0.00019316,2]
[387702914,1758815838486,-515.94069663,0.00019316,2]
[387702915,1758815838560,-480.0,0.00019316,2]